bitfinex/quotes_BTCUSD_20230101
["timestamp","ask_amount","ask_price","bid_price","bid_amount"]
[1672532548514,0.17557172,16565.0,16564.0,0.009]
[1672532548768,0.17549922,16565.0,16564.0,0.009]
[1672532549026,0.19305639,16565.0,16564.0,0.709]
[1672532549262,0.19312889,16565.0,16564.0,0.709]
[1672532550147,0.19305639,16565.0,16564.0,0.709]
[1672532550400,0.19312889,16565.0,16564.0,0.709]
[1672532550649,0.19305639,16565.0,16564.0,0.709]
[1672532551726,1.09312889,16565.0,16564.0,0.709]
[1672532551941,0.19305639,16565.0,16564.0,0.009]
[1672532552958,0.19312889,16565.0,16564.0,0.009]
[1672532553192,0.19312889,16565.0,16564.0,0.13012512]
[1672532554171,0.19312889,16565.0,16564.0,0.009]
[1672532555765,1.39312889,16565.0,16564.0,0.009]
[1672532556007,1.39312889,16565.0,16564.0,0.00619904]
[1672532556247,1.79504435,16565.0,16564.0,0.00619904]
[1672532557217,1.79504435,16565.0,16564.0,0.12732243]
[1672532557453,1.62804513,16565.0,16564.0,0.12732243]
[1672532558930,2.22804513,16565.0,16564.0,0.12732243]
[1672532559167,2.24217823,16565.0,16564.0,0.12732243]
[1672532559683,2.24217823,16565.0,16564.0,0.12112339]
[1672532559928,2.24517823,16565.0,16564.0,0.13212339]
[1672532560156,2.24517823,16565.0,16562.0,0.04803144]
[1672532560396,2.1435937,16565.0,16564.0,0.011]
[1672532560857,3.22800342,16565.0,16564.0,0.011]
[1672532560862,3.22800342,16565.0,16564.0,0.00379395]
[1672532562154,3.22800342,16565.0,16564.0,0.00261965]
[1672532564168,2.24817823,16565.0,16564.0,0.00261965]
[1672532567932,2.24817823,16565.0,16564.0,0.0018072]
[1672532568422,3.52986342,16565.0,16564.0,0.00062342]
[1672532569440,3.22800342,16565.0,16564.0,0.00062342]
[1672532572418,3.22800342,16565.0,16564.0,0.00021503]
[1672532573894,3.22800342,16565.0,16564.0,0.00014835]
[1672532576164,2.4231518,16565.0,16564.0,0.00014835]
[1672532576427,2.24817823,16565.0,16564.0,5.109e-05]
[1672532576669,2.40660678,16565.0,16564.0,5.109e-05]
[1672532578150,2.39247368,16565.0,16564.0,0.11828273]
[1672532579148,2.39247368,16565.0,16564.0,5.109e-05]
[1672532579670,0.3,16564.0,16561.0,0.58552833]
[1672532579920,1.22799906,16563.0,16561.0,0.58552833]
[1672532580169,1.4455048,16563.0,16561.0,0.58552833]
[1672532580425,1.22799906,16563.0,16561.0,0.58552833]
[1672532580923,1.22799906,16563.0,16561.0,0.58652833]
[1672532581429,1.22799906,16563.0,16562.0,0.62607691]
[1672532581696,1.22799906,16563.0,16561.0,0.04752927]
[1672532581942,1.36099906,16563.0,16561.0,0.04852927]
[1672532582190,1.36099906,16563.0,16561.0,0.001]
[1672532582699,1.06099906,16563.0,16561.0,0.001]
[1672532582944,1.34854555,16563.0,16561.0,0.001]
[1672532583472,0.13485456,16562.0,16561.0,0.701]
[1672532583720,0.13492706,16562.0,16561.0,0.701]
[1672532583977,0.14342706,16562.0,16561.0,0.701]
[1672532584221,0.14335456,16562.0,16561.0,0.701]
[1672532584482,0.28468738,16562.0,16561.0,0.701]
[1672532585223,0.28475988,16562.0,16561.0,0.7]
[1672532585472,0.39775988,16562.0,16561.0,0.701]
[1672532585718,0.39768738,16562.0,16561.0,0.701]
[1672532586228,1.28718644,16562.0,16561.0,0.701]
[1672532586468,1.41897758,16562.0,16561.0,0.701]
[1672532586972,1.41890508,16562.0,16561.0,0.701]
[1672532588728,1.41897758,16562.0,16561.0,0.701]
[1672532588958,1.41890508,16562.0,16561.0,0.701]
[1672532589473,1.41890508,16562.0,16561.0,0.001]
[1672532589974,1.41897758,16562.0,16561.0,0.001]
[1672532590465,1.41897758,16562.0,16561.0,0.701]
[1672532590959,1.41890508,16562.0,16561.0,0.701]
[1672532591210,1.41890508,16562.0,16561.0,0.81927589]
[1672532592226,1.41890508,16562.0,16561.0,0.701]
[1672532592499,1.41897758,16562.0,16561.0,0.701]
[1672532593264,1.41897758,16562.0,16561.0,0.81927589]
[1672532594017,1.41897758,16562.0,16561.0,0.701]
[1672532594280,0.52940602,16562.0,16561.0,0.701]
[1672532594554,0.39768738,16562.0,16561.0,0.701]
[1672532594790,0.39775988,16562.0,16561.0,0.701]
[1672532595303,0.39768738,16562.0,16561.0,0.701]
[1672532596543,0.39768738,16562.0,16561.0,0.001]
[1672532597550,0.39768738,16562.0,16561.0,0.701]
[1672532597791,0.44045612,16562.0,16561.0,0.701]
[1672532598757,0.39768738,16562.0,16561.0,0.701]
[1672532599733,0.39775988,16562.0,16561.0,0.701]
[1672532600222,0.39775988,16562.0,16561.0,0.81927589]
[1672532600732,0.39768738,16562.0,16561.0,0.81927589]
[1672532600983,0.39775988,16562.0,16561.0,0.81927589]
[1672532601986,0.39768738,16562.0,16561.0,0.81927589]
[1672532603490,0.39768738,16562.0,16561.0,0.11927589]
[1672532604209,0.39775988,16562.0,16561.0,0.11927589]
[1672532604466,0.39775988,16562.0,16561.0,0.81927589]
[1672532604754,0.39768738,16562.0,16561.0,0.81927589]
[1672532605234,0.39775988,16562.0,16561.0,0.81927589]
[1672532605724,0.39768738,16562.0,16561.0,0.81927589]
[1672532605992,0.39768738,16562.0,16561.0,0.81921213]
[1672532606983,1.2892617,16562.0,16561.0,0.81921213]
[1672532607232,1.2892617,16562.0,16561.0,0.70093624]
[1672532607722,1.2893342,16562.0,16561.0,0.70093624]
[1672532607970,1.2892617,16562.0,16561.0,0.70093624]
[1672532608474,1.01307432,16562.0,16561.0,0.70093624]
[1672532609005,1.01307432,16562.0,16561.0,0.81921213]
[1672532610258,1.00457432,16562.0,16561.0,1.43611648]
[1672532610509,0.113,16562.0,16561.0,1.56444355]
[1672532610995,0.113,16562.0,16561.0,2.18386155]
[1672532611244,0.113,16562.0,16561.0,2.05553448]
[1672532611744,0.113,16562.0,16561.0,1.43611648]
[1672532612488,0.113,16562.0,16561.0,2.05553448]
[1672532612747,0.72421044,16562.0,16561.0,1.43863013]
[1672532613019,0.72421044,16562.0,16561.0,2.06978154]
[1672532614022,0.72421044,16562.0,16561.0,1.61392341]
[1672532614280,0.113,16562.0,16561.0,1.61392341]
[1672532614529,0.113,16562.0,16561.0,2.067693]
[1672532616278,0.65574837,16562.0,16561.0,2.067693]
[1672532616529,0.113,16562.0,16561.0,2.067693]
[1672532617159,0.65572097,16562.0,16561.0,2.067693]
[1672532618070,0.65551136,16562.0,16561.0,2.067693]
[1672532620048,0.65551136,16562.0,16561.0,1.367693]
[1672532620804,0.65551136,16562.0,16561.0,2.067693]
[1672532623830,0.65551136,16562.0,16561.0,1.61392341]
[1672532624319,0.113,16562.0,16561.0,2.24342141]
[1672532624569,0.113,16562.0,16561.0,1.61392341]
[1672532625057,0.113,16562.0,16561.0,2.08347624]
[1672532625799,0.113,16562.0,16561.0,1.61392341]
[1672532626281,0.113,16562.0,16561.0,2.21783052]
[1672532626772,0.113,16562.0,16561.0,1.51783052]
[1672532627276,0.113,16562.0,16561.0,0.91392341]
[1672532627518,0.113,16562.0,16561.0,1.46037601]
[1672532627773,0.113,16562.0,16561.0,1.61392341]
[1672532628272,0.113,16562.0,16561.0,2.08391764]
[1672532628522,0.113,16562.0,16561.0,1.61392341]
[1672532630309,0.113,16562.0,16561.0,2.06815782]
[1672532630821,0.113,16562.0,16561.0,1.61383026]
[1672532632494,0.56459824,16562.0,16561.0,2.17567171]
[1672532633231,0.56459824,16562.0,16561.0,1.61383026]
[1672532633732,0.56459824,16562.0,16561.0,0.91383026]
[1672532634767,0.56459824,16562.0,16561.0,1.61383026]
[1672532635641,0.56459824,16562.0,16561.0,2.11591424]
[1672532635900,0.56459824,16562.0,16561.0,1.61383026]
[1672532636335,0.113,16562.0,16561.0,2.23371703]
[1672532636589,0.56466684,16562.0,16561.0,1.61383026]
[1672532638821,0.56466684,16562.0,16561.0,2.16611903]
[1672532640077,0.56164486,16562.0,16561.0,2.16611903]
[1672532640325,0.10997802,16562.0,16561.0,2.16611903]
[1672532640585,0.56178301,16562.0,16561.0,2.16611903]
[1672532640825,0.10997802,16562.0,16561.0,2.16611903]
[1672532641079,0.10695604,16562.0,16561.0,2.16611903]
[1672532642612,0.6494674,16562.0,16561.0,2.16611903]
[1672532644342,0.64644639,16562.0,16561.0,2.16611903]
[1672532645330,0.64342538,16562.0,16561.0,2.16611903]
[1672532646083,0.64040437,16562.0,16561.0,2.16611903]
[1672532647076,0.64040437,16562.0,16561.0,1.46611903]
[1672532647077,0.63738239,16562.0,16561.0,1.46611903]
[1672532647326,0.63738239,16562.0,16561.0,0.84670103]
[1672532647577,0.63738239,16562.0,16561.0,0.67140775]
[1672532648084,0.63738239,16562.0,16561.0,1.37140775]
[1672532648085,0.63436041,16562.0,16561.0,1.37140775]
[1672532648345,0.63436041,16562.0,16561.0,1.99082575]
[1672532649307,0.63133843,16562.0,16561.0,1.99082575]
[1672532649553,0.08882707,16562.0,16561.0,1.99082575]
[1672532650043,0.70003751,16562.0,16561.0,2.18990832]
[1672532650287,0.08580509,16562.0,16561.0,2.18990832]
[1672532651833,0.69701553,16562.0,16561.0,2.18990832]
[1672532653821,0.69701553,16562.0,16561.0,1.57049032]
[1672532656065,0.69708803,16562.0,16561.0,1.37140775]
[1672532656322,0.08587759,16562.0,16561.0,1.37140775]
[1672532656827,0.08580509,16562.0,16561.0,1.37140775]
[1672532657831,0.08587759,16562.0,16561.0,1.37140775]
[1672532658083,0.08580509,16562.0,16561.0,1.37140775]
[1672532662075,0.08587759,16562.0,16561.0,1.37140775]
[1672532662842,0.08580509,16562.0,16561.0,1.37140775]
[1672532663097,0.08587759,16562.0,16561.0,1.37140775]
[1672532663344,0.08580509,16562.0,16561.0,1.37140775]
[1672532669267,0.08580509,16562.0,16561.0,0.67140775]
[1672532670263,0.08587759,16562.0,16561.0,1.37140775]
[1672532670532,0.08580509,16562.0,16561.0,1.37140775]
[1672532670795,0.08580509,16562.0,16561.0,0.81911898]
[1672532671041,0.41515915,16562.0,16561.0,0.81911898]
[1672532672024,0.41515915,16562.0,16561.0,0.81905533]
[1672532672549,0.41523165,16562.0,16561.0,0.81905533]
[1672532673043,0.41515915,16562.0,16561.0,0.81905533]
[1672532674024,0.41523165,16562.0,16561.0,0.81905533]
[1672532674808,0.41515915,16562.0,16561.0,0.81905533]
[1672532675306,0.41523165,16562.0,16561.0,0.81905533]
[1672532677326,0.41515915,16562.0,16561.0,0.81905533]
[1672532678324,0.9477533,16562.0,16561.0,0.81905533]
[1672532678577,0.9562533,16562.0,16561.0,0.81905533]
[1672532678827,1.84782762,16562.0,16561.0,0.81905533]
[1672532679086,1.44597932,16562.0,16561.0,0.81905533]
[1672532679595,0.554405,16562.0,16561.0,0.81905533]
[1672532681837,0.5543325,16562.0,16561.0,0.81905533]
[1672532682089,0.42365915,16562.0,16561.0,0.11905533]
[1672532682346,0.42365915,16562.0,16561.0,0.81905533]
[1672532685400,0.42373165,16562.0,16561.0,0.81905533]
[1672532686166,0.42365915,16562.0,16561.0,0.81905533]
[1672532686415,0.42373165,16562.0,16561.0,0.81905533]
[1672532686657,0.42365915,16562.0,16561.0,0.81905533]
[1672532687867,0.42373165,16562.0,16561.0,0.81905533]
[1672532688112,0.42365915,16562.0,16561.0,0.81905533]
[1672532688354,0.42365915,16562.0,16561.0,0.11905533]
[1672532689090,0.42373165,16562.0,16561.0,0.11905533]
[1672532689345,0.42373165,16562.0,16561.0,0.81905533]
[1672532690089,0.42365915,16562.0,16561.0,0.81905533]
[1672532691181,0.42373165,16562.0,16561.0,0.81905533]
[1672532692151,0.42365915,16562.0,16561.0,0.81905533]
[1672532694363,0.42373165,16562.0,16561.0,0.81905533]
[1672532694611,0.42365915,16562.0,16561.0,0.81905533]
[1672532695364,0.42365915,16562.0,16561.0,0.11905533]
[1672532695611,0.42373165,16562.0,16561.0,0.11905533]
[1672532695855,0.42365915,16562.0,16561.0,0.11905533]
[1672532696325,0.42365915,16562.0,16561.0,0.81905533]
[1672532696854,0.42365915,16562.0,16561.0,0.81894002]
[1672532698131,0.42373165,16562.0,16561.0,0.81894002]
[1672532698382,0.42365915,16562.0,16561.0,0.81894002]
[1672532699117,0.42373165,16562.0,16561.0,0.81894002]
[1672532699364,0.42365915,16562.0,16561.0,0.81894002]
[1672532700118,0.42373165,16562.0,16561.0,0.81894002]
[1672532700344,0.42365915,16562.0,16561.0,0.81894002]
[1672532701089,0.42373165,16562.0,16561.0,0.81894002]
[1672532701592,1.31530597,16562.0,16561.0,0.81894002]
[1672532701838,1.31523347,16562.0,16561.0,0.81894002]
[1672532702342,1.31523347,16562.0,16561.0,0.11894002]
[1672532703399,1.31523347,16562.0,16561.0,0.81894002]
[1672532703636,1.31530597,16562.0,16561.0,0.81894002]
[1672532703888,1.31523347,16562.0,16561.0,0.81894002]
[1672532704612,0.42365915,16562.0,16561.0,0.81894002]
[1672532705106,1.31523347,16562.0,16561.0,0.81894002]
[1672532705596,0.42365915,16562.0,16561.0,0.81894002]
[1672532706868,1.31523347,16562.0,16561.0,0.81894002]
[1672532707873,1.31530597,16562.0,16561.0,0.81894002]
[1672532708377,1.31523347,16562.0,16561.0,0.81894002]
[1672532709374,1.30487232,16562.0,16561.0,0.81894002]
[1672532709622,1.30479982,16562.0,16561.0,0.81894002]
[1672532710885,1.30487232,16562.0,16561.0,0.81894002]
[1672532711140,1.30479982,16562.0,16561.0,0.81894002]
[1672532711900,1.30487232,16562.0,16561.0,0.81894002]
[1672532713666,1.30479982,16562.0,16561.0,0.81894002]
[1672532715180,0.08387144,16562.0,16561.0,1.18940695]
[1672532715426,0.07537144,16562.0,16561.0,1.52657666]
[1672532715928,0.07537144,16562.0,16561.0,2.14599466]
[1672532717214,0.07537144,16562.0,16561.0,2.01558775]
[1672532717464,0.07537144,16562.0,16561.0,1.39616975]
[1672532720342,0.68671639,16562.0,16561.0,1.39616975]
[1672532721359,0.68671639,16562.0,16561.0,2.01558775]
[1672532723326,0.07537144,16562.0,16561.0,2.01558775]
[1672532723579,0.68671639,16562.0,16561.0,2.24876349]
[1672532725301,0.07537144,16562.0,16561.0,2.24876349]
[1672532729611,0.07537144,16562.0,16561.0,1.67153376]
[1672532729612,0.6182565,16562.0,16561.0,1.67153376]
[1672532730839,0.6182565,16562.0,16561.0,2.11649432]
[1672532731080,0.6182565,16562.0,16561.0,1.67153376]
[1672532731812,0.07537144,16562.0,16561.0,1.67153376]
[1672532732307,0.07537144,16562.0,16561.0,2.27826739]
[1672532732816,0.07537144,16562.0,16561.0,1.67153376]
[1672532733576,0.07537144,16562.0,16561.0,1.67143827]
[1672532734311,0.07537144,16562.0,16561.0,2.27415863]
[1672532734559,0.07537144,16562.0,16561.0,1.67143827]
[1672532735299,0.07537144,16562.0,16561.0,2.19163525]
[1672532735548,0.07537144,16562.0,16561.0,1.67143827]
[1672532735796,0.07537144,16562.0,16561.0,2.1920812]
[1672532736530,0.07537144,16562.0,16561.0,1.67143827]
[1672532738550,0.07537144,16562.0,16561.0,0.97143827]
[1672532738807,0.07537144,16562.0,16561.0,0.73826253]
[1672532739055,0.07537144,16562.0,16561.0,1.28407425]
[1672532739313,0.07537144,16562.0,16561.0,0.73826253]
[1672532739528,0.07537144,16562.0,16561.0,1.43826253]
[1672532740808,0.07537144,16562.0,16561.0,1.99684169]
[1672532741047,0.07537144,16562.0,16561.0,1.43826253]
[1672532741296,0.07537144,16562.0,16561.0,1.6695729]
[1672532741550,0.07537144,16562.0,16561.0,2.13841672]
[1672532744317,0.07537144,16562.0,16561.0,1.6695729]
[1672532744565,0.07537144,16562.0,16561.0,2.23771738]
[1672532744807,0.07537144,16562.0,16561.0,1.6695729]
[1672532745063,0.07537144,16562.0,16561.0,2.23789773]
[1672532745566,0.07537144,16562.0,16561.0,1.53789773]
[1672532746326,0.6182565,16562.0,16561.0,1.53789773]
[1672532746578,0.6182565,16562.0,16561.0,1.61847973]
[1672532746827,0.07537144,16562.0,16561.0,1.61847973]
[1672532747336,0.07537144,16562.0,16561.0,2.23789773]
[1672532748608,0.6182565,16562.0,16561.0,2.23789773]
[1672532750651,0.6182565,16562.0,16561.0,1.61847973]
[1672532751802,0.6182565,16562.0,16561.0,2.23789773]
[1672532752544,0.6182565,16562.0,16561.0,1.53789773]
[1672532753040,0.6182565,16562.0,16561.0,0.91847973]
[1672532753293,0.6182565,16562.0,16561.0,0.68716936]
[1672532753780,0.6182565,16562.0,16561.0,1.38716936]
[1672532754538,0.6182565,16562.0,16561.0,2.00658736]
[1672532755301,0.6182565,16562.0,16561.0,2.00651145]
[1672532759044,0.54288506,16562.0,16561.0,2.00601872]
[1672532759257,0.54288506,16562.0,16561.0,2.2382202]
[1672532759513,0.54288506,16562.0,16561.0,1.72389537]
[1672532759514,0.55188506,16562.0,16561.0,1.72389537]
[1672532759968,0.55188506,16562.0,16561.0,2.2673876]
[1672532760701,0.55188506,16562.0,16561.0,1.72389537]
[1672532760957,0.55188506,16562.0,16561.0,2.25598994]
[1672532761897,0.009,16562.0,16561.0,2.25598994]
[1672532762882,0.55274284,16562.0,16561.0,2.25598994]
[1672532763131,0.55274284,16562.0,16561.0,1.72389537]
[1672532763638,0.55274284,16562.0,16561.0,2.17730899]
[1672532763868,0.55274284,16562.0,16561.0,1.72389537]
[1672532764127,0.55274284,16562.0,16561.0,2.21282221]
[1672532764376,0.55274284,16562.0,16561.0,1.72389537]
[1672532764628,0.55274284,16562.0,16561.0,2.02389537]
[1672532765094,0.009,16562.0,16561.0,2.02389537]
[1672532765845,0.55274284,16562.0,16561.0,1.72389537]
[1672532766098,0.55274284,16562.0,16561.0,2.32086114]
[1672532766343,0.55274284,16562.0,16561.0,2.35130133]
[1672532767085,0.55274284,16562.0,16561.0,2.32086114]
[1672532769650,0.55274284,16562.0,16561.0,1.62086114]
[1672532770409,0.55274284,16562.0,16561.0,2.32086114]
[1672532772974,0.55274284,16562.0,16561.0,2.35042196]
[1672532775048,0.55274284,16562.0,16561.0,1.75345619]
[1672532775312,0.55274284,16562.0,16561.0,2.05345619]
[1672532775566,0.55274284,16562.0,16561.0,2.49653272]
[1672532776320,0.55274284,16562.0,16561.0,2.05345619]
[1672532776806,0.55274284,16562.0,16561.0,2.54916666]
[1672532777308,0.55274284,16562.0,16561.0,1.75345619]
[1672532777561,0.009,16562.0,16561.0,2.67793971]
[1672532778077,0.55274284,16562.0,16561.0,2.37793971]
[1672532778319,0.55274284,16562.0,16561.0,2.67784377]
[1672532780050,0.009,16562.0,16561.0,2.67784377]
[1672532780558,0.55274284,16562.0,16561.0,2.67784377]
[1672532781187,0.55274284,16562.0,16561.0,1.97784377]
[1672532782073,0.009,16562.0,16561.0,2.64828295]
[1672532782577,0.009,16562.0,16561.0,2.02379943]
[1672532783080,0.8246471,16562.0,16561.0,2.33995939]
[1672532783345,0.64341378,16562.0,16561.0,2.97535939]
[1672532783600,1.09656647,16562.0,16561.0,2.97535939]
[1672532783847,0.64341378,16562.0,16561.0,2.65919943]
[1672532784089,0.82467485,16562.0,16561.0,3.15193791]
[1672532784375,0.009,16562.0,16561.0,3.15193791]
[1672532784624,0.55274284,16562.0,16561.0,1.98433643]
[1672532784868,0.55274284,16562.0,16561.0,1.36491843]
[1672532785116,0.009,16562.0,16561.0,1.36491843]
[1672532785616,0.009,16562.0,16561.0,1.50141027]
[1672532786409,0.55274284,16562.0,16561.0,1.50141027]
[1672532786625,0.009,16562.0,16561.0,1.50141027]
[1672532788434,0.55274284,16562.0,16561.0,1.50141027]
[1672532790202,0.55274284,16562.0,16561.0,1.80141027]
[1672532790969,0.009,16562.0,16561.0,1.80141027]
[1672532791217,0.55274284,16562.0,16561.0,1.80141027]
[1672532791718,0.009,16562.0,16561.0,1.80141027]
[1672532791964,0.009,16562.0,16561.0,1.30867179]
[1672532792726,0.009,16562.0,16561.0,1.93265268]
[1672532792984,0.009,16562.0,16561.0,1.63265268]
[1672532794300,0.55274284,16562.0,16561.0,1.63265268]
[1672532794540,0.009,16562.0,16561.0,1.63265268]
[1672532796685,0.55274284,16562.0,16561.0,0.93265268]
[1672532797638,0.55274284,16562.0,16561.0,1.63265268]
[1672532799160,0.55274284,16562.0,16561.0,2.25207068]
[1672532799413,0.55274284,16562.0,16561.0,2.55207068]
[1672532799666,0.55274284,16562.0,16561.0,2.25207068]
[1672532799913,0.55274284,16562.0,16561.0,2.11557884]
[1672532799914,0.77024858,16562.0,16561.0,2.11557884]
[1672532800158,0.009,16562.0,16561.0,1.49616084]
[1672532800913,0.55267768,16562.0,16561.0,1.49616084]
[1672532801130,0.55267768,16562.0,16561.0,2.11557884]
[1672532801417,0.55267768,16562.0,16561.0,2.41547843]
[1672532801924,0.55267768,16562.0,16561.0,2.65702627]
[1672532804197,0.55267768,16562.0,16561.0,2.35702627]
[1672532805718,0.55267768,16562.0,16561.0,2.65702627]
[1672532806725,0.009,16562.0,16561.0,2.65702627]
[1672532808186,0.009,16562.0,16561.0,1.95702627]
[1672532808669,0.009,16562.0,16561.0,2.65702627]
[1672532808918,0.009,16562.0,16561.0,2.03304538]
[1672532809177,0.46213525,16562.0,16561.0,2.03304538]
[1672532816155,0.009,16562.0,16561.0,2.4891714]
[1672532817140,0.009,16562.0,16561.0,2.03304538]
[1672532817634,0.009,16562.0,16561.0,2.63324254]
[1672532818948,0.54367768,16563.0,16562.0,0.6]
[1672532819244,0.54367768,16563.0,16562.0,2.23734225]
[1672532820246,0.54367768,16563.0,16562.0,2.37022129]
[1672532820774,0.54367768,16563.0,16562.0,2.51322129]
[1672532821263,0.54367768,16563.0,16562.0,2.96603923]
[1672532822993,0.54367768,16563.0,16562.0,2.96595061]
[1672532823724,0.54367768,16563.0,16562.0,2.26595061]
[1672532824467,0.54367768,16563.0,16562.0,2.12295061]
[1672532824720,0.54467768,16563.0,16562.0,2.26395061]
[1672532825257,0.54467768,16563.0,16562.0,2.96395061]
[1672532827776,0.54467768,16563.0,16562.0,3.26395061]
[1672532830529,0.54467768,16563.0,16562.0,2.96395061]
[1672532839793,0.54467768,16563.0,16562.0,3.26395061]
[1672532840769,0.54467768,16563.0,16562.0,2.56395061]
[1672532841741,0.54467768,16563.0,16562.0,3.26395061]
[1672532844708,0.54467768,16563.0,16562.0,2.96395061]
[1672532844969,0.54467768,16563.0,16562.0,3.26395061]
[1672532846012,0.54467768,16563.0,16562.0,3.26385498]
[1672532846239,0.54467768,16563.0,16562.0,2.96385498]
[1672532847022,0.54460998,16563.0,16562.0,2.96385498]
[1672532847736,0.54460998,16563.0,16562.0,2.26385498]
[1672532848017,0.54460998,16563.0,16562.0,1.64443698]
[1672532848755,0.54460998,16563.0,16562.0,2.34443698]
[1672532850977,0.54460998,16563.0,16562.0,2.96385498]
[1672532851226,0.54460998,16563.0,16562.0,3.26385498]
[1672532852936,0.54460998,16563.0,16562.0,2.81103704]
[1672532853197,0.001,16563.0,16562.0,2.81103704]
[1672532854236,0.001,16563.0,16562.0,3.26875868]
[1672532854483,0.001,16563.0,16562.0,2.81103704]
[1672532855485,0.001,16563.0,16562.0,3.42084599]
[1672532856240,0.001,16563.0,16562.0,2.81103704]
[1672532857216,0.001,16563.0,16562.0,3.37417406]
[1672532857690,0.001,16563.0,16562.0,2.81103704]
[1672532859158,0.001,16563.0,16562.0,2.11103704]
[1672532859406,0.45421712,16563.0,16562.0,2.11103704]
[1672532859934,0.45421712,16563.0,16562.0,1.49161904]
[1672532860182,0.45421712,16563.0,16562.0,2.63454433]
[1672532860431,0.45421712,16563.0,16562.0,2.81103704]
[1672532860939,0.001,16563.0,16562.0,2.81103704]
[1672532861187,0.45411329,16563.0,16562.0,2.81103704]
[1672532863318,0.44911329,16563.0,16562.0,2.81103704]
[1672532864010,0.44911329,16563.0,16562.0,3.3641844]
[1672532864778,0.54360998,16564.0,16562.0,3.3641844]
[1672532865047,0.54360998,16564.0,16563.0,0.95583644]
[1672532865299,0.54360998,16564.0,16563.0,1.65583644]
[1672532866088,0.54360998,16564.0,16563.0,0.95583644]
[1672532866322,0.54360998,16564.0,16563.0,1.25583644]
[1672532866573,0.54360998,16564.0,16563.0,1.39883644]
[1672532867066,0.54360998,16564.0,16563.0,2.02191053]
[1672532867312,0.54360998,16564.0,16563.0,2.72191053]
[1672532868312,0.54360998,16565.0,16563.0,2.72191053]
[1672532868573,0.54360998,16564.0,16563.0,1.46607409]
[1672532869069,0.54360998,16564.0,16563.0,1.94249209]
[1672532870144,0.54360998,16564.0,16563.0,2.38549209]
[1672532870884,0.54360998,16565.0,16563.0,2.38549209]
[1672532871130,0.54360998,16565.0,16564.0,1.219418]
[1672532871374,0.54360998,16565.0,16564.0,2.78615937]
[1672532871872,0.54360998,16565.0,16564.0,3.08615937]
[1672532872860,0.54360998,16565.0,16564.0,3.16015937]
[1672532873861,0.54360998,16565.0,16564.0,2.59196721]
[1672532874134,0.54360998,16566.0,16565.0,0.6]
[1672532874370,0.54360998,16566.0,16565.0,2.23861472]
[1672532874886,0.54360998,16566.0,16565.0,2.53861472]
[1672532875160,0.54360998,16566.0,16565.0,2.23861472]
[1672532875401,0.54960998,16566.0,16565.0,2.23861472]
[1672532875643,0.54960998,16566.0,16565.0,2.53861472]
[1672532877003,0.04960998,16566.0,16565.0,2.53861472]
[1672532877797,0.04960998,16566.0,16565.0,3.14990833]
[1672532878528,0.04360998,16566.0,16565.0,3.14990833]
[1672532878787,0.04460998,16566.0,16565.0,3.29090833]
[1672532879040,0.04460998,16566.0,16565.0,2.99090833]
[1672532880978,0.04460998,16566.0,16565.0,2.37149033]
[1672532881218,0.001,16566.0,16565.0,2.37149033]
[1672532881718,0.61234495,16566.0,16565.0,2.37149033]
[1672532882970,0.001,16566.0,16565.0,2.37149033]
[1672532883222,0.61234495,16566.0,16565.0,2.37149033]
[1672532883957,0.001,16566.0,16565.0,2.37149033]
[1672532884223,0.001,16566.0,16565.0,2.99090833]
[1672532884473,0.001,16566.0,16565.0,2.37149033]
[1672532887215,0.61234495,16566.0,16565.0,2.37149033]
[1672532887928,0.001,16566.0,16565.0,2.37149033]
[1672532888655,0.001,16566.0,16565.0,2.99090833]
[1672532889641,0.001,16566.0,16565.0,2.37149033]
[1672532891155,0.01427301,16568.0,16566.0,0.6]
[1672532891363,0.01427301,16568.0,16566.0,1.59714903]
[1672532891851,0.01427301,16568.0,16566.0,2.22195036]
[1672532892592,0.01427301,16568.0,16566.0,2.29695036]
[1672532893342,0.01427301,16568.0,16567.0,0.5480856]
[1672532893578,0.01927301,16568.0,16567.0,1.2480856]
[1672532895046,0.01427301,16568.0,16567.0,1.2480856]
[1672532895301,0.01927301,16568.0,16567.0,1.2480856]
[1672532895541,0.01427301,16568.0,16567.0,1.2480856]
[1672532895813,0.01427301,16568.0,16567.0,1.3230856]
[1672532896056,0.01434551,16568.0,16567.0,1.3230856]
[1672532896302,0.34218602,16568.0,16567.0,0.90762442]
[1672532896542,0.34218602,16568.0,16567.0,0.83262442]
[1672532896818,0.34718602,16568.0,16567.0,0.83262442]
[1672532904953,0.34718602,16568.0,16567.0,0.13262442]
[1672532905459,0.34725852,16568.0,16567.0,0.13262442]
[1672532905706,0.34718602,16568.0,16567.0,0.13262442]
[1672532906669,0.34718602,16568.0,16567.0,0.83262442]
[1672532907648,0.01927301,16568.0,16567.0,1.23745602]
[1672532908190,0.01927301,16568.0,16567.0,0.83262442]
[1672532914897,0.01927301,16568.0,16567.0,0.83253025]
[1672532915121,0.40806611,16568.0,16567.0,0.83253025]
[1672532917871,0.4079467,16568.0,16567.0,0.83253025]
[1672532920569,0.4079467,16568.0,16567.0,0.13253025]
[1672532921594,0.4079467,16568.0,16567.0,0.83253025]
[1672532925316,0.0191536,16568.0,16567.0,0.83253025]
[1672532925585,0.0191536,16568.0,16567.0,1.23729194]
[1672532927451,0.0191536,16568.0,16567.0,0.53729194]
[1672532928422,0.0191536,16568.0,16567.0,1.23729194]
[1672532928929,0.0191536,16568.0,16567.0,0.83253025]
[1672532931143,0.0191536,16568.0,16567.0,1.23736185]
[1672532931385,0.0191536,16568.0,16567.0,0.83253025]
[1672532931663,0.0191536,16568.0,16567.0,1.23736185]
[1672532933841,0.0191536,16568.0,16567.0,0.83253025]
[1672532934087,0.0191536,16568.0,16567.0,1.23736185]
[1672532934333,0.0191536,16568.0,16567.0,0.53736185]
[1672532934576,0.0191536,16568.0,16567.0,0.13253025]
[1672532935074,0.0191536,16568.0,16567.0,0.53736185]
[1672532935562,0.0191536,16568.0,16567.0,0.83253025]
[1672532938070,0.0191536,16568.0,16567.0,0.83244099]
[1672532938308,0.0191536,16568.0,16567.0,1.23727259]
[1672532938542,0.0141536,16568.0,16567.0,0.83244099]
[1672532939284,0.0191536,16568.0,16567.0,0.83244099]
[1672532941587,0.0191536,16568.0,16567.0,0.13244099]
[1672532942581,0.0191536,16568.0,16567.0,0.83244099]
[1672532944798,0.0141536,16568.0,16567.0,0.83244099]
[1672532945283,0.0191536,16568.0,16567.0,0.83244099]
[1672532950917,0.0191536,16568.0,16567.0,0.13244099]
[1672532951913,0.0191536,16568.0,16567.0,0.83244099]
[1672532953578,0.40799971,16568.0,16567.0,0.83244099]
[1672532953832,0.40792721,16568.0,16567.0,0.83244099]
[1672532954604,1.43091574,16568.0,16567.0,0.83244099]
[1672532954848,1.43098824,16568.0,16567.0,0.83244099]
[1672532955601,1.43091574,16568.0,16567.0,0.83244099]